[Event "*** Titled Tuesday Blitz"]
[Site "Chess.com"]
[Date "2018.12.04"]
[Round "8"]
[White "Shahinyan_ChessMood"]
[Black "FearNoEvil12"]
[Result "1-0"]
[WhiteElo "2644"]
[BlackElo "1988"]
[TimeControl "180+2"]
[EndTime "14:52:15 PST"]
[Termination "Shahinyan_ChessMood won on time"]

1. e4 {[%clk 0:03:01.9]} 1... a6 {[%clk 0:03:00]} 2. d4 {[%clk 0:03:01.3]} 2...
b5 {[%clk 0:03:01.1]} 3. Nf3 {[%clk 0:03:01.6]} 3... Bb7 {[%clk 0:03:02.5]} 4.
Bd3 {[%clk 0:03:02.8]} 4... e6 {[%clk 0:03:03.9]} 5. O-O {[%clk 0:03:03.9]} 5...
Nf6 {[%clk 0:03:04.3]} 6. Qe2 {[%clk 0:03:04.1]} 6... d6 {[%clk 0:03:05.7]} 7.
a4 {[%clk 0:03:05.2]} 7... b4 {[%clk 0:03:05.9]} 8. c4 {[%clk 0:03:04.1]} 8...
bxc3 {[%clk 0:03:04.7]} 9. Nxc3 {[%clk 0:03:04]} 9... Nbd7 {[%clk 0:03:06]} 10.
Bd2 {[%clk 0:03:03.8]} 10... h6 {[%clk 0:03:05.9]} 11. b4 {[%clk 0:03:04.9]}
11... g5 {[%clk 0:03:05.6]} 12. Rfe1 {[%clk 0:02:48.5]} 12... g4 {[%clk
0:03:03.9]} 13. Nh4 {[%clk 0:02:43.7]} 13... h5 {[%clk 0:03:05.1]} 14. d5 {[%clk
0:02:40.5]} 14... e5 {[%clk 0:02:59.3]} 15. Nf5 {[%clk 0:02:40.8]} 15... Bc8
{[%clk 0:02:52.1]} 16. Bg5 {[%clk 0:02:34.6]} 16... Rg8 {[%clk 0:02:43.4]} 17.
Bh4 {[%clk 0:02:33.9]} 17... Be7 {[%clk 0:02:42.2]} 18. Nd1 {[%clk 0:02:26.1]}
18... Nf8 {[%clk 0:02:41]} 19. Nxe7 {[%clk 0:02:23.7]} 19... Qxe7 {[%clk
0:02:41.2]} 20. Rc1 {[%clk 0:02:15.3]} 20... Ng6 {[%clk 0:02:32.2]} 21. Bxf6
{[%clk 0:02:15.4]} 21... Qxf6 {[%clk 0:02:33.2]} 22. Rxc7 {[%clk 0:02:17]} 22...
Nf4 {[%clk 0:02:33.6]} 23. Qc2 {[%clk 0:02:13.3]} 23... Bd7 {[%clk 0:02:31]} 24.
Rxd7 {[%clk 0:02:08.3]} 24... Kxd7 {[%clk 0:02:17]} 25. Qc6+ {[%clk 0:02:08.9]}
25... Ke7 {[%clk 0:02:17.6]} 26. Qb7+ {[%clk 0:02:10.1]} 26... Kf8 {[%clk
0:02:17.5]} 27. Qxa8+ {[%clk 0:02:11.4]} 27... Kg7 {[%clk 0:02:18.4]} 28. Qxa6
{[%clk 0:02:13]} 28... Kh6 {[%clk 0:02:09.5]} 29. Bf1 {[%clk 0:02:01.1]} 29...
Nh3+ {[%clk 0:01:33.8]} 30. Kh1 {[%clk 0:02:01.1]} 30... Nxf2+ {[%clk
0:01:25.4]} 31. Nxf2 {[%clk 0:02:01.6]} 31... Qxf2 {[%clk 0:01:27]} 32. Qe2
{[%clk 0:02:03.2]} 32... Qf6 {[%clk 0:01:27.5]} 33. a5 {[%clk 0:02:03.2]} 33...
h4 {[%clk 0:01:25.4]} 34. a6 {[%clk 0:02:03.7]} 34... h3 {[%clk 0:01:21.2]} 35.
a7 {[%clk 0:02:04.3]} 35... g3 {[%clk 0:01:18.9]} 36. b5 {[%clk 0:02:00.4]}
36... Qh4 {[%clk 0:00:46.3]} 37. b6 {[%clk 0:01:39.2]} 37... gxh2 {[%clk
0:00:19.4]} 38. Qe3+ {[%clk 0:01:33.4]} 38... Kg7 {[%clk 0:00:09.6]} 39. b7
{[%clk 0:01:32.9]} 39... Rh8 {[%clk 0:00:05.1]} 40. b8=Q {[%clk 0:01:31.1]}
40... hxg2+ {[%clk 0:00:04.2]} 41. Bxg2 {[%clk 0:01:32.1]} 1-0

[Event "*** Titled Tuesday Blitz"]
[Site "Chess.com"]
[Date "2018.12.04"]
[Round "8"]
[White "vovachesss"]
[Black "Oligan22"]
[Result "1-0"]
[WhiteElo "2503"]
[BlackElo "2287"]
[TimeControl "180+2"]
[EndTime "14:52:41 PST"]
[Termination "vovachesss won by resignation"]

1. e4 {[%clk 0:03:01.9]} 1... c5 {[%clk 0:02:58.2]} 2. d4 {[%clk 0:02:52.7]}
2... cxd4 {[%clk 0:02:58]} 3. c3 {[%clk 0:02:54.3]} 3... d3 {[%clk 0:02:55.7]}
4. Bxd3 {[%clk 0:02:51.3]} 4... e6 {[%clk 0:02:57.1]} 5. Nf3 {[%clk 0:02:51.4]}
5... Nc6 {[%clk 0:02:53.5]} 6. O-O {[%clk 0:02:49.8]} 6... d6 {[%clk 0:02:54.5]}
7. Qe2 {[%clk 0:02:50.7]} 7... Nf6 {[%clk 0:02:50.5]} 8. Nbd2 {[%clk 0:02:52.1]}
8... Be7 {[%clk 0:02:49.7]} 9. Nc4 {[%clk 0:02:53.1]} 9... a6 {[%clk 0:02:47]}
10. Rd1 {[%clk 0:02:54.1]} 10... Qc7 {[%clk 0:02:44.8]} 11. Bf4 {[%clk
0:02:43.3]} 11... e5 {[%clk 0:02:34.2]} 12. Bg5 {[%clk 0:02:43.2]} 12... Be6
{[%clk 0:02:25.2]} 13. Ne3 {[%clk 0:02:34.4]} 13... O-O {[%clk 0:02:25.9]} 14.
Bxf6 {[%clk 0:02:35.3]} 14... Bxf6 {[%clk 0:02:26.8]} 15. Bc4 {[%clk 0:02:36.9]}
15... Na5 {[%clk 0:02:15.6]} 16. Bd5 {[%clk 0:02:25.8]} 16... Rac8 {[%clk
0:02:04.4]} 17. Rd2 {[%clk 0:02:11.8]} 17... Rfd8 {[%clk 0:01:52.6]} 18. Rad1
{[%clk 0:02:12]} 18... b5 {[%clk 0:01:48.9]} 19. h3 {[%clk 0:02:00.2]} 19... h6
{[%clk 0:01:47.4]} 20. Nh2 {[%clk 0:01:55]} 20... Bg5 {[%clk 0:01:44.2]} 21.
Nhf1 {[%clk 0:01:51.5]} 21... Nc4 {[%clk 0:01:40.5]} 22. Bxc4 {[%clk 0:01:47.4]}
22... bxc4 {[%clk 0:01:16.9]} 23. Nd5 {[%clk 0:01:46.8]} 23... Qb7 {[%clk
0:01:08.2]} 24. Nfe3 {[%clk 0:01:47.3]} 24... g6 {[%clk 0:00:51.2]} 25. Kh2
{[%clk 0:01:42.9]} 25... Kg7 {[%clk 0:00:50.6]} 26. g3 {[%clk 0:01:40.6]} 26...
Rd7 {[%clk 0:00:46.7]} 27. f4 {[%clk 0:01:37.5]} 27... exf4 {[%clk 0:00:41.5]}
28. gxf4 {[%clk 0:01:37.9]} 28... Bxd5 {[%clk 0:00:40.2]} 29. Nxd5 {[%clk
0:01:12.5]} 29... Bd8 {[%clk 0:00:41]} 30. Qg4 {[%clk 0:01:07.5]} 30... h5
{[%clk 0:00:40.9]} 31. Qf3 {[%clk 0:01:00.1]} 31... Bh4 {[%clk 0:00:21.5]} 32.
Rg1 {[%clk 0:00:54.4]} 32... Re8 {[%clk 0:00:21.2]} 33. Qxh5 {[%clk 0:00:44.7]}
33... Bd8 {[%clk 0:00:18.2]} 34. Rdg2 {[%clk 0:00:38.7]} 34... Rxe4 {[%clk
0:00:12.9]} 35. Rxg6+ {[%clk 0:00:36.2]} 35... fxg6 {[%clk 0:00:12.3]} 36. Qxg6+
{[%clk 0:00:38.1]} 1-0

[Event "*** Titled Tuesday Blitz"]
[Site "Chess.com"]
[Date "2018.12.04"]
[Round "8"]
[White "Iyael"]
[Black "ddtru"]
[Result "1-0"]
[WhiteElo "2119"]
[BlackElo "2306"]
[TimeControl "180+2"]
[EndTime "14:52:47 PST"]
[Termination "Iyael won on time"]

1. e4 {[%clk 0:03:01.9]} 1... c5 {[%clk 0:03:00.3]} 2. c3 {[%clk 0:03:02]} 2...
Nf6 {[%clk 0:03:00.3]} 3. e5 {[%clk 0:03:02.8]} 3... Nd5 {[%clk 0:03:01.4]} 4.
d4 {[%clk 0:03:04.2]} 4... cxd4 {[%clk 0:03:02.3]} 5. Nf3 {[%clk 0:03:05.6]}
5... e6 {[%clk 0:03:03.1]} 6. cxd4 {[%clk 0:03:06]} 6... Nc6 {[%clk 0:03:04.2]}
7. Nc3 {[%clk 0:03:05.2]} 7... Nxc3 {[%clk 0:03:04.6]} 8. bxc3 {[%clk
0:03:05.6]} 8... d6 {[%clk 0:03:05.4]} 9. exd6 {[%clk 0:03:02.3]} 9... Bxd6
{[%clk 0:03:06.4]} 10. Bd3 {[%clk 0:03:01.6]} 10... h6 {[%clk 0:02:59.3]} 11.
O-O {[%clk 0:03:02]} 11... O-O {[%clk 0:02:59.7]} 12. Re1 {[%clk 0:03:01.2]}
12... b6 {[%clk 0:02:56.6]} 13. Qe2 {[%clk 0:02:59.4]} 13... f5 {[%clk
0:02:43.2]} 14. Bd2 {[%clk 0:02:51.8]} 14... Qf6 {[%clk 0:02:27.9]} 15. Ne5
{[%clk 0:02:44.2]} 15... Bxe5 {[%clk 0:02:21.8]} 16. dxe5 {[%clk 0:02:44.7]}
16... Qe7 {[%clk 0:02:23.1]} 17. Rad1 {[%clk 0:02:34.7]} 17... Bb7 {[%clk
0:02:22.6]} 18. Qe3 {[%clk 0:02:29.6]} 18... Rfd8 {[%clk 0:02:19]} 19. Bc1
{[%clk 0:02:27.8]} 19... Rd7 {[%clk 0:02:00.2]} 20. Qg3 {[%clk 0:02:27.3]} 20...
Kh8 {[%clk 0:01:57]} 21. Bc4 {[%clk 0:02:27.5]} 21... Rad8 {[%clk 0:01:48.5]}
22. Rxd7 {[%clk 0:02:28.1]} 22... Rxd7 {[%clk 0:01:48.1]} 23. Qg6 {[%clk
0:02:29.4]} 23... Nxe5 {[%clk 0:01:40.9]} 24. Qxe6 {[%clk 0:02:21.4]} 24... Qxe6
{[%clk 0:01:24.1]} 25. Bxe6 {[%clk 0:02:21.8]} 25... Rd8 {[%clk 0:00:58.4]} 26.
Bxf5 {[%clk 0:02:16.8]} 26... Nc4 {[%clk 0:00:45.7]} 27. h3 {[%clk 0:02:11.9]}
27... a5 {[%clk 0:00:36.3]} 28. Kh2 {[%clk 0:01:50.4]} 28... Rf8 {[%clk
0:00:29]} 29. Bd3 {[%clk 0:01:42.7]} 29... Bd5 {[%clk 0:00:27.6]} 30. f3 {[%clk
0:01:40.8]} 30... b5 {[%clk 0:00:25.8]} 31. Re7 {[%clk 0:01:38.1]} 31... b4
{[%clk 0:00:21.5]} 32. cxb4 {[%clk 0:01:37.3]} 32... axb4 {[%clk 0:00:22.4]} 33.
Rc7 {[%clk 0:01:34.8]} 33... Ne5 {[%clk 0:00:21.7]} 34. Be2 {[%clk 0:01:35.2]}
34... Rf7 {[%clk 0:00:17.6]} 35. Rc5 {[%clk 0:01:35.1]} 35... Rd7 {[%clk
0:00:17.4]} 36. Bb2 {[%clk 0:01:35.7]} 36... Ng6 {[%clk 0:00:17.2]} 37. Bd3
{[%clk 0:01:35.4]} 37... Nf8 {[%clk 0:00:13.8]} 38. Bf5 {[%clk 0:01:36.1]} 38...
Rd8 {[%clk 0:00:13.4]} 39. Rc7 {[%clk 0:01:37]} 39... Bxa2 {[%clk 0:00:06.2]}
40. Bxg7+ {[%clk 0:01:36.3]} 40... Kg8 {[%clk 0:00:06.7]} 41. Bf6 {[%clk
0:01:35]} 41... Rd6 {[%clk 0:00:05.9]} 42. Rg7+ {[%clk 0:01:34.5]} 42... Kh8
{[%clk 0:00:07.1]} 43. Bb2 {[%clk 0:01:29.8]} 43... Rd2 {[%clk 0:00:05.9]} 44.
Be5 {[%clk 0:01:20.6]} 44... Re2 {[%clk 0:00:04.8]} 45. f4 {[%clk 0:01:21.2]}
1-0

[Event "*** Titled Tuesday Blitz"]
[Site "Chess.com"]
[Date "2018.12.04"]
[Round "8"]
[White "Firouzja2003"]
[Black "penguingm1"]
[Result "1-0"]
[WhiteElo "3010"]
[BlackElo "2786"]
[TimeControl "180+2"]
[EndTime "14:52:50 PST"]
[Termination "Firouzja2003 won by resignation"]

1. e4 {[%clk 0:03:01.7]} 1... e5 {[%clk 0:03:00.2]} 2. Nf3 {[%clk 0:03:02.6]}
2... Nc6 {[%clk 0:03:01.2]} 3. Bb5 {[%clk 0:03:04.2]} 3... a6 {[%clk 0:03:02.5]}
4. Ba4 {[%clk 0:03:05.4]} 4... Nf6 {[%clk 0:03:03.7]} 5. O-O {[%clk 0:03:06.8]}
5... Be7 {[%clk 0:03:05.2]} 6. Re1 {[%clk 0:03:07.9]} 6... b5 {[%clk 0:03:06.7]}
7. Bb3 {[%clk 0:03:09.5]} 7... d6 {[%clk 0:03:08.3]} 8. c3 {[%clk 0:03:11.2]}
8... O-O {[%clk 0:03:09.9]} 9. h3 {[%clk 0:03:12.7]} 9... Bb7 {[%clk 0:03:11.4]}
10. d4 {[%clk 0:03:14]} 10... Re8 {[%clk 0:03:12.9]} 11. Nbd2 {[%clk 0:03:15.6]}
11... Bf8 {[%clk 0:03:13.9]} 12. a3 {[%clk 0:03:17.3]} 12... g6 {[%clk
0:03:15.5]} 13. Ba2 {[%clk 0:03:18.2]} 13... Bg7 {[%clk 0:03:16]} 14. b4 {[%clk
0:03:13.3]} 14... exd4 {[%clk 0:03:17.2]} 15. cxd4 {[%clk 0:03:14.3]} 15... a5
{[%clk 0:03:18.7]} 16. Ng5 {[%clk 0:02:54.8]} 16... d5 {[%clk 0:03:19.5]} 17. e5
{[%clk 0:02:55.8]} 17... Nxd4 {[%clk 0:03:20.8]} 18. Bb2 {[%clk 0:02:56.1]}
18... Nh5 {[%clk 0:03:03.4]} 19. Nxf7 {[%clk 0:02:56.8]} 19... Qd7 {[%clk
0:02:51.1]} 20. Ng5 {[%clk 0:02:33.4]} 20... Ne6 {[%clk 0:02:47]} 21. Nxe6
{[%clk 0:02:24.1]} 21... Qxe6 {[%clk 0:02:47.7]} 22. Ne4 {[%clk 0:02:22.6]}
22... axb4 {[%clk 0:02:48]} 23. Nc5 {[%clk 0:02:22.5]} 23... Qe7 {[%clk
0:00:42.3]} 24. Nxb7 {[%clk 0:02:23.1]} 24... c6 {[%clk 0:00:42.9]} 25. Nd6
{[%clk 0:02:24.2]} 25... Rf8 {[%clk 0:00:43.5]} 26. axb4 {[%clk 0:02:17.8]}
26... Nf4 {[%clk 0:00:44.6]} 27. Re3 {[%clk 0:01:44.8]} 27... Kh8 {[%clk
0:00:32.4]} 28. Bb3 {[%clk 0:01:42.6]} 28... Rad8 {[%clk 0:00:31.6]} 29. Bd4
{[%clk 0:01:37.9]} 29... Ne6 {[%clk 0:00:29.9]} 30. Ra7 {[%clk 0:01:29.6]} 30...
Rd7 {[%clk 0:00:26.5]} 31. Rxd7 {[%clk 0:01:30]} 31... Qxd7 {[%clk 0:00:28.4]}
32. Bb2 {[%clk 0:01:28.7]} 32... Qe7 {[%clk 0:00:29]} 33. Rf3 {[%clk 0:01:29.2]}
33... Ra8 {[%clk 0:00:21.7]} 34. Rf7 {[%clk 0:01:16.4]} 34... Qh4 {[%clk
0:00:20.4]} 35. Bxd5 {[%clk 0:01:13.7]} 35... Ng5 {[%clk 0:00:12.4]} 36. Bxc6
{[%clk 0:01:14.6]} 36... Rd8 {[%clk 0:00:07]} 37. Rd7 {[%clk 0:01:14.3]} 37...
Rf8 {[%clk 0:00:07.8]} 38. Qd4 {[%clk 0:01:02.3]} 38... Qh5 {[%clk 0:00:03.5]}
39. Rxg7 {[%clk 0:01:02.7]} 39... Ne6 {[%clk 0:00:03.8]} 40. Qd5 {[%clk
0:00:57.7]} 40... Qh4 {[%clk 0:00:04.9]} 41. Rf7 {[%clk 0:00:56.8]} 1-0

[Event "*** Titled Tuesday Blitz"]
[Site "Chess.com"]
[Date "2018.12.04"]
[Round "8"]
[White "Andrew-FB00"]
[Black "DishonorOnYourCow"]
[Result "0-1"]
[WhiteElo "1793"]
[BlackElo "2230"]
[TimeControl "180+2"]
[EndTime "14:52:53 PST"]
[Termination "DishonorOnYourCow won by checkmate"]

1. e4 {[%clk 0:03:01.9]} 1... c5 {[%clk 0:02:58.6]} 2. Nf3 {[%clk 0:03:02.6]}
2... d6 {[%clk 0:02:59.1]} 3. Bb5+ {[%clk 0:03:02.8]} 3... Nd7 {[%clk
0:02:59.1]} 4. d4 {[%clk 0:03:03]} 4... cxd4 {[%clk 0:02:59.4]} 5. Qxd4 {[%clk
0:03:03.7]} 5... a6 {[%clk 0:03:00.5]} 6. Bxd7+ {[%clk 0:03:03.3]} 6... Bxd7
{[%clk 0:03:01.3]} 7. Bg5 {[%clk 0:03:03.9]} 7... h6 {[%clk 0:03:01.6]} 8. Bh4
{[%clk 0:03:04.3]} 8... Rc8 {[%clk 0:02:51]} 9. Nc3 {[%clk 0:03:03.5]} 9... Nf6
{[%clk 0:02:37.5]} 10. Bxf6 {[%clk 0:03:03.4]} 10... gxf6 {[%clk 0:02:38.6]} 11.
O-O {[%clk 0:03:00.9]} 11... Rg8 {[%clk 0:02:39.1]} 12. g3 {[%clk 0:03:01.4]}
12... Bh3 {[%clk 0:02:34.2]} 13. Rfe1 {[%clk 0:02:58.8]} 13... Qd7 {[%clk
0:02:26.9]} 14. Rad1 {[%clk 0:02:30]} 14... Bg4 {[%clk 0:02:24]} 15. Rd3 {[%clk
0:02:29.3]} 15... h5 {[%clk 0:02:22.4]} 16. Nh4 {[%clk 0:02:27]} 16... Bh6
{[%clk 0:02:16]} 17. f4 {[%clk 0:02:13.1]} 17... Bxf4 {[%clk 0:01:42.9]} 18.
gxf4 {[%clk 0:02:12.4]} 18... Bf3+ {[%clk 0:01:32.1]} 19. Kf2 {[%clk 0:02:01.1]}
19... Qh3 {[%clk 0:00:31.4]} 20. Nxf3 {[%clk 0:01:47.3]} 20... Rg2+ {[%clk
0:00:30.7]} 21. Ke3 {[%clk 0:01:46.7]} 21... Rxh2 {[%clk 0:00:21.5]} 22. Rd2
{[%clk 0:01:42]} 22... Rh1 {[%clk 0:00:09.9]} 23. Rxh1 {[%clk 0:01:34.5]} 23...
Qxh1 {[%clk 0:00:10.9]} 24. Rd1 {[%clk 0:01:25.7]} 24... Qh3 {[%clk 0:00:09.3]}
25. Qd2 {[%clk 0:01:22.9]} 25... Rc4 {[%clk 0:00:06.6]} 26. b3 {[%clk
0:01:05.5]} 26... Rc5 {[%clk 0:00:07]} 27. Nd5 {[%clk 0:01:00]} 27... b5 {[%clk
0:00:05.2]} 28. Rg1 {[%clk 0:00:30]} 28... e6 {[%clk 0:00:03.6]} 29. Nxf6+
{[%clk 0:00:28.1]} 29... Ke7 {[%clk 0:00:04.9]} 30. e5 {[%clk 0:00:22.3]} 30...
d5 {[%clk 0:00:04.8]} 31. b4 {[%clk 0:00:19.1]} 31... Rc4 {[%clk 0:00:04.9]} 32.
Rg8 {[%clk 0:00:17]} 32... d4+ {[%clk 0:00:05.9]} 33. Ke4 {[%clk 0:00:15.5]}
33... Qf5# {[%clk 0:00:06.7]} 0-1

[Event "*** Titled Tuesday Blitz"]
[Site "Chess.com"]
[Date "2018.12.04"]
[Round "8"]
[White "FranciscodelaF"]
[Black "maziarbagheri"]
[Result "0-1"]
[WhiteElo "2333"]
[BlackElo "2261"]
[TimeControl "180+2"]
[EndTime "14:52:54 PST"]
[Termination "maziarbagheri won by resignation"]

1. d4 {[%clk 0:03:01.9]} 1... d5 {[%clk 0:02:31.6]} 2. c4 {[%clk 0:03:00.4]}
2... c6 {[%clk 0:02:32.3]} 3. Nf3 {[%clk 0:02:56.6]} 3... e6 {[%clk 0:02:29]} 4.
Qc2 {[%clk 0:02:56.4]} 4... f5 {[%clk 0:02:28.2]} 5. g3 {[%clk 0:02:56.7]} 5...
Nf6 {[%clk 0:02:28.3]} 6. Bg2 {[%clk 0:02:58.2]} 6... Bd6 {[%clk 0:02:29.1]} 7.
O-O {[%clk 0:03:00.1]} 7... Qe7 {[%clk 0:02:29.5]} 8. Nc3 {[%clk 0:02:59.8]}
8... O-O {[%clk 0:02:30.2]} 9. Rb1 {[%clk 0:02:58.9]} 9... Nbd7 {[%clk
0:02:26.4]} 10. c5 {[%clk 0:02:59.3]} 10... Bc7 {[%clk 0:02:26.4]} 11. Bf4
{[%clk 0:03:00.9]} 11... Bxf4 {[%clk 0:02:25]} 12. gxf4 {[%clk 0:03:02.7]} 12...
Ne4 {[%clk 0:02:22.3]} 13. b4 {[%clk 0:03:01]} 13... a6 {[%clk 0:02:19.4]} 14.
a4 {[%clk 0:03:00.8]} 14... Ndf6 {[%clk 0:02:13.9]} 15. Ne5 {[%clk 0:02:59.5]}
15... Bd7 {[%clk 0:02:15]} 16. Bxe4 {[%clk 0:02:57.7]} 16... fxe4 {[%clk
0:02:13]} 17. f3 {[%clk 0:02:51.2]} 17... exf3 {[%clk 0:02:09.7]} 18. Rxf3
{[%clk 0:02:51.5]} 18... Be8 {[%clk 0:02:10.4]} 19. Kh1 {[%clk 0:02:46.6]} 19...
Nd7 {[%clk 0:02:10.9]} 20. Nd3 {[%clk 0:02:35.6]} 20... Bg6 {[%clk 0:02:10.7]}
21. Rg1 {[%clk 0:02:34.9]} 21... Qh4 {[%clk 0:02:07.8]} 22. e3 {[%clk
0:02:25.9]} 22... e5 {[%clk 0:01:50.2]} 23. Qf2 {[%clk 0:02:02.5]} 23... Qxf2
{[%clk 0:01:38.9]} 24. Nxf2 {[%clk 0:01:58.8]} 24... exd4 {[%clk 0:01:40]} 25.
exd4 {[%clk 0:01:59.2]} 25... Rae8 {[%clk 0:01:35.3]} 26. Kg2 {[%clk 0:01:53.8]}
26... Rf7 {[%clk 0:01:16.9]} 27. Ng4 {[%clk 0:01:52.9]} 27... Bh5 {[%clk
0:01:14.4]} 28. Kg3 {[%clk 0:01:46]} 28... Bxg4 {[%clk 0:01:10.5]} 29. Kxg4
{[%clk 0:01:47]} 29... Nf6+ {[%clk 0:01:12.3]} 30. Kg3 {[%clk 0:01:47.8]} 30...
Ne4+ {[%clk 0:01:13.5]} 31. Nxe4 {[%clk 0:01:40.6]} 31... Rxe4 {[%clk
0:01:15.4]} 32. Rd1 {[%clk 0:01:41.7]} 32... Rf5 {[%clk 0:01:12.9]} 33. Rdd3
{[%clk 0:01:39.5]} 33... Kf7 {[%clk 0:01:13.2]} 34. Rf2 {[%clk 0:01:35.1]} 34...
Kf6 {[%clk 0:01:13.8]} 35. Rff3 {[%clk 0:01:36.1]} 35... Kg6 {[%clk 0:01:14.3]}
36. Rf2 {[%clk 0:01:37]} 36... Rf6 {[%clk 0:01:13.7]} 37. Kg4 {[%clk 0:01:34.3]}
37... h5+ {[%clk 0:01:10.3]} 38. Kg3 {[%clk 0:01:35.2]} 38... Kf5 {[%clk
0:01:11.5]} 39. Kh4 {[%clk 0:01:27.6]} 39... Rg6 {[%clk 0:01:10]} 40. Rg3 {[%clk
0:01:24.9]} 40... Rxg3 {[%clk 0:01:07.4]} 41. hxg3 {[%clk 0:01:25.7]} 41... g6
{[%clk 0:01:07.4]} 42. Rd2 {[%clk 0:01:26.2]} 42... Re1 {[%clk 0:01:06]} 43. Kh3
{[%clk 0:01:27]} 43... Ke4 {[%clk 0:01:05.7]} 44. Kh4 {[%clk 0:01:25.7]} 44...
Ke3 {[%clk 0:00:58.3]} 45. Ra2 {[%clk 0:01:21.9]} 45... Rg1 {[%clk 0:00:55.6]}
46. Ra3+ {[%clk 0:01:19.3]} 46... Kxd4 {[%clk 0:00:54.6]} 47. Kg5 {[%clk
0:01:20.6]} 47... Ke4 {[%clk 0:00:53.8]} 48. Kxg6 {[%clk 0:01:21.4]} 48... h4
{[%clk 0:00:55.3]} 49. f5 {[%clk 0:01:21]} 49... Rxg3+ {[%clk 0:00:51]} 50. Rxg3
{[%clk 0:01:18.6]} 50... hxg3 {[%clk 0:00:52.9]} 51. f6 {[%clk 0:01:20.3]} 51...
g2 {[%clk 0:00:54]} 52. f7 {[%clk 0:01:22]} 52... g1=Q+ {[%clk 0:00:55.3]} 53.
Kh7 {[%clk 0:01:23.2]} 53... Qf2 {[%clk 0:00:56.2]} 54. Kg8 {[%clk 0:01:23.7]}
54... Qg3+ {[%clk 0:00:57.4]} 55. Kh8 {[%clk 0:01:24.2]} 55... Qh4+ {[%clk
0:00:57.8]} 56. Kg8 {[%clk 0:01:24.7]} 56... Qg5+ {[%clk 0:00:59.1]} 57. Kh8
{[%clk 0:01:26.1]} 57... Qh6+ {[%clk 0:01:00.3]} 58. Kg8 {[%clk 0:01:27.5]}
58... Qg6+ {[%clk 0:01:01.6]} 59. Kf8 {[%clk 0:01:27.7]} 59... Ke5 {[%clk
0:01:02.2]} 60. Ke8 {[%clk 0:01:28.5]} 60... Qe6+ {[%clk 0:01:03.4]} 61. Kf8
{[%clk 0:01:29.3]} 61... Kf6 {[%clk 0:01:04.8]} 0-1

[Event "*** Titled Tuesday Blitz"]
[Site "Chess.com"]
[Date "2018.12.04"]
[Round "8"]
[White "AndrBaryshpolets"]
[Black "Berardino"]
[Result "1-0"]
[WhiteElo "2586"]
[BlackElo "2419"]
[TimeControl "180+2"]
[EndTime "14:53:04 PST"]
[Termination "AndrBaryshpolets won by resignation"]

1. d4 {[%clk 0:03:01.9]} 1... Nf6 {[%clk 0:03:00.6]} 2. c4 {[%clk 0:03:03.5]}
2... g6 {[%clk 0:03:02.1]} 3. Nc3 {[%clk 0:03:04.2]} 3... Bg7 {[%clk 0:03:03.6]}
4. g3 {[%clk 0:03:04.9]} 4... Kf8 {[%clk 0:03:04]} 5. Bg2 {[%clk 0:03:06.4]}
5... h6 {[%clk 0:03:00.7]} 6. e4 {[%clk 0:03:03.3]} 6... d6 {[%clk 0:03:01.7]}
7. Nge2 {[%clk 0:02:57.3]} 7... Kg8 {[%clk 0:03:00.6]} 8. O-O {[%clk 0:02:56.5]}
8... Kh7 {[%clk 0:02:58.6]} 9. f4 {[%clk 0:02:55.6]} 9... Bg4 {[%clk 0:02:58.8]}
10. e5 {[%clk 0:02:50.2]} 10... Ne8 {[%clk 0:02:43.4]} 11. h3 {[%clk 0:02:46]}
11... Bxe2 {[%clk 0:02:43]} 12. Qxe2 {[%clk 0:02:38.7]} 12... Nc6 {[%clk
0:02:40.8]} 13. d5 {[%clk 0:02:37.1]} 13... Nd4 {[%clk 0:02:36.8]} 14. Qe4
{[%clk 0:02:23.1]} 14... c5 {[%clk 0:02:37.7]} 15. Be3 {[%clk 0:02:18.2]} 15...
f5 {[%clk 0:02:36.2]} 16. exf6 {[%clk 0:02:11.8]} 16... Nxf6 {[%clk 0:02:37.2]}
17. Qd3 {[%clk 0:02:09.5]} 17... Qb6 {[%clk 0:01:59.6]} 18. Rab1 {[%clk
0:02:02.5]} 18... a5 {[%clk 0:01:46.8]} 19. Kh2 {[%clk 0:01:43.2]} 19... Rhf8
{[%clk 0:01:39.5]} 20. Bxd4 {[%clk 0:01:38.4]} 20... cxd4 {[%clk 0:01:40.1]} 21.
Nb5 {[%clk 0:01:40.1]} 21... Nd7 {[%clk 0:01:35.6]} 22. Be4 {[%clk 0:01:33]}
22... Rf6 {[%clk 0:01:36.6]} 23. Qxd4 {[%clk 0:01:16.2]} 23... Nc5 {[%clk
0:01:37.2]} 24. Bc2 {[%clk 0:01:14]} 24... Kh8 {[%clk 0:01:36.1]} 25. Qe3 {[%clk
0:01:12.3]} 25... Re8 {[%clk 0:01:28.1]} 26. Rbe1 {[%clk 0:01:09.6]} 26... e5
{[%clk 0:01:11.8]} 27. fxe5 {[%clk 0:00:29.7]} 27... Rxe5 {[%clk 0:01:11.9]} 28.
Qd2 {[%clk 0:00:30.6]} 28... Rxf1 {[%clk 0:00:57]} 29. Rxf1 {[%clk 0:00:32.5]}
29... Nd7 {[%clk 0:00:57.5]} 30. Bxg6 {[%clk 0:00:28.1]} 30... Re7 {[%clk
0:00:24.2]} 31. Bb1 {[%clk 0:00:14.7]} 31... Qe3 {[%clk 0:00:18.4]} 32. Qxe3
{[%clk 0:00:09.6]} 32... Rxe3 {[%clk 0:00:20.3]} 33. Nxd6 {[%clk 0:00:09.5]}
33... Bxb2 {[%clk 0:00:19.2]} 34. Rf2 {[%clk 0:00:08.2]} 34... Bd4 {[%clk
0:00:19.6]} 35. Nf5 {[%clk 0:00:07.2]} 35... Bc5 {[%clk 0:00:16.5]} 36. Nxe3
{[%clk 0:00:07.7]} 36... Bxe3 {[%clk 0:00:18.4]} 37. Re2 {[%clk 0:00:08.9]}
37... Bd4 {[%clk 0:00:19.5]} 38. Re8+ {[%clk 0:00:08.1]} 1-0